bitfinex-derivatives/quotes_ETHF0:USTF0_20250309
["timestamp","ask_amount","ask_price","bid_price","bid_amount"]
[1741485362675,0.54793,2190.5,2190.3,0.00456862]
[1741485363078,1.1859,2190.6,2190.3,0.00456862]
[1741485363278,0.54793,2190.5,2190.3,0.00456862]
[1741485363676,0.54793,2190.5,2190.1,2.54017678]
[1741485364969,2.33289976,2190.7,2190.1,3.08817678]
[1741485365168,1.60739976,2190.7,2190.3,3.2078]
[1741485365371,1.60739976,2190.7,2190.4,0.5999]
[1741485366075,0.54787,2190.7,2190.4,0.5999]
[1741485366577,0.54789,2190.6,2190.4,0.5999]
[1741485366778,0.54788,2190.7,2190.3,1.53362896]
[1741485368378,0.54788,2190.7,2190.2,0.09131586]
[1741485369173,3.21465291,2190.8,2190.2,0.09131586]
[1741485369579,0.54788,2190.7,2190.2,0.09131586]
[1741485369781,2.17225291,2190.8,2190.1,4.13982629]
[1741485369980,0.5479,2190.6,2190.1,4.13982629]
[1741485370578,2.17225291,2190.8,2190.1,6.27082629]
[1741485370790,2.17225291,2190.8,2190.1,3.78240469]
[1741485371079,0.54797,2190.3,2190.2,0.00685291]
[1741485371275,3.2078,2190.4,2190.2,0.00685291]
[1741485371477,0.00685291,2190.7,2190.3,3.2078]
[1741485371880,0.54785,2190.8,2190.3,3.2078]
[1741485372473,1.1091,2190.9,2190.3,3.2078]
[1741485372677,0.54786,2190.8,2190.3,3.2078]
[1741485372881,0.54786,2190.8,2190.4,0.6204]
[1741485372882,0.55471291,2190.8,2190.4,0.6204]
[1741485373083,0.54787,2190.7,2190.4,0.6204]
[1741485373581,0.00685291,2190.8,2190.4,0.6204]
[1741485373784,0.54786,2190.7,2190.4,0.6204]
[1741485374180,0.00685291,2190.8,2190.4,0.6204]
[1741485374475,0.54787,2190.7,2190.4,0.6204]
[1741485375381,0.00685291,2190.8,2190.4,0.6204]
[1741485375777,0.54787,2190.7,2190.2,2.05251083]
[1741485377070,0.54787,2190.7,2190.2,2.05936374]
[1741485377385,3.21465291,2190.8,2190.2,2.05936374]
[1741485377586,3.76250291,2190.8,2190.2,2.60734374]
[1741485378081,0.5477,2191.4,2190.8,0.54783]
[1741485378279,4.14224293,2191.7,2191.0,3.2078]
[1741485378476,0.54769,2191.4,2191.0,3.2078]
[1741485378672,2.125,2191.6,2191.0,3.2078]
[1741485378878,0.54776,2191.1,2191.0,0.93372896]
[1741485379280,4.14224293,2191.3,2190.8,3.2078]
[1741485379474,0.5479,2190.6,2190.3,6.82863149]
[1741485379679,0.5479,2190.6,2190.3,3.2078]
[1741485380284,0.5479,2190.6,2190.2,0.00685291]
[1741485381176,0.6341,2190.7,2190.2,0.00685291]
[1741485381378,1.18197,2190.7,2190.2,0.00685291]
[1741485381779,0.54789,2190.6,2190.2,0.00685291]
[1741485381978,0.6341,2190.7,2190.0,1.59560656]
[1741485382186,1.18198,2190.7,2190.0,1.59560656]
[1741485382884,1.18198,2190.7,2190.2,3.2078]
[1741485382885,0.6341,2190.7,2190.2,3.2078]
[1741485383290,0.6341,2190.7,2190.2,3.75578]
[1741485384985,2.96856112,2190.8,2190.2,0.93372896]
[1741485385286,3.2078,2191.0,2190.3,0.6272]
[1741485385484,6.25924293,2191.1,2190.3,0.6272]
[1741485385485,2.117,2191.1,2190.5,3.2078]
[1741485385793,2.45190469,2191.4,2190.9,0.54781]
[1741485385981,7.35004293,2192.0,2191.1,3.2078]
[1741485386297,3.45940996,2192.0,2191.5,3.2078]
[1741485386590,0.54758,2191.9,2191.5,3.2078]
[1741485386782,0.54756,2191.9,2191.5,3.2078]
[1741485386982,2.91184996,2192.0,2191.5,3.2078]
[1741485387183,0.00685291,2191.9,2191.8,3.2078]
[1741485387993,0.00685291,2191.9,2191.6,1.2738]
[1741485389891,24.47661208,2192.4,2191.8,3.2078]
[1741485390082,20.72136208,2192.4,2191.8,3.75538]
[1741485390596,20.72136208,2192.4,2191.9,0.54756]
[1741485391096,20.72136208,2192.4,2191.8,3.2078]
[1741485391097,20.72821499,2192.4,2191.8,3.75538]
[1741485391397,20.72821499,2192.4,2191.8,3.8466292]
[1741485392590,20.72821499,2192.4,2191.8,3.2990492]
[1741485392796,0.5475,2192.2,2191.8,0.0912492]
[1741485394001,0.54753,2192.1,2191.6,2.108]
[1741485394200,1.19244,2192.0,2191.6,2.108]
[1741485394404,0.6449,2192.0,2191.6,2.108]
[1741485394603,1.19245,2192.0,2191.6,2.108]
[1741485395206,1.19245,2192.0,2191.6,0.00685291]
[1741485395507,0.54758,2191.9,2191.6,0.00685291]
[1741485395808,1.19245,2192.0,2191.6,0.00685291]
[1741485397114,1.19245,2192.0,2191.4,2.106]
[1741485397310,1.19245,2192.0,2191.5,0.6446]
[1741485397516,3.2078,2192.1,2191.5,0.6446]
[1741485397710,0.54755,2192.0,2191.5,3.8524]
[1741485397904,3.2078,2192.1,2191.5,3.8524]
[1741485398216,3.2078,2192.1,2191.6,0.00685291]
[1741485398422,3.2078,2192.1,2191.6,0.65155291]
[1741485398907,3.2078,2192.1,2191.6,1.19918291]
[1741485399107,3.2078,2192.1,2191.7,0.54761]
[1741485399312,4.14224293,2192.3,2191.6,4.48125291]
[1741485399703,0.54754,2192.0,2191.6,3.85935291]
[1741485400115,0.54754,2192.0,2191.6,1.58528187]
[1741485400408,0.623,2191.9,2191.6,1.58528187]
[1741485403118,0.623,2191.9,2191.5,2.05981083]
[1741485404013,2.79547413,2192.3,2191.5,2.05981083]
[1741485404209,18.57865288,2192.4,2192.0,3.2078]
[1741485404406,0.54748,2192.3,2191.7,3.2078]
[1741485404613,0.54748,2192.3,2191.7,4.35661]
[1741485404811,0.54748,2192.3,2191.7,3.809]
[1741485405316,0.54748,2192.3,2191.7,4.35661]
[1741485405514,18.57865288,2192.4,2191.7,3.809]
[1741485405814,18.57865288,2192.4,2191.8,0.54758]
[1741485406021,18.57865288,2192.4,2191.7,3.809]
[1741485406022,18.57865288,2192.4,2191.9,0.54755]
[1741485406216,18.57865288,2192.4,2191.7,3.809]
[1741485406217,18.57865288,2192.4,2191.7,2.08247896]
[1741485406515,0.54747,2192.3,2191.7,3.809]
[1741485406813,19.12610288,2192.4,2191.7,6.46159]
[1741485407017,18.57865288,2192.4,2191.7,5.914]
[1741485407211,0.6217,2192.3,2191.8,0.54758]
[1741485407413,0.6217,2192.3,2191.7,5.914]
[1741485407611,0.6217,2192.3,2191.8,0.54758]
[1741485408013,0.6217,2192.3,2191.7,5.914]
[1741485408217,18.57865288,2192.4,2191.9,0.54755]
[1741485409120,18.57865288,2192.4,2191.9,0.63879503]
[1741485409321,18.57865288,2192.4,2191.7,4.27872399]
[1741485409618,19.21905288,2192.4,2191.7,4.82632399]
[1741485409817,0.54747,2192.3,2191.7,4.27872399]
[1741485410012,1.14677,2192.3,2191.7,4.27872399]
[1741485410519,1.14677,2192.3,2191.7,4.82633399]
[1741485410721,0.5993,2192.3,2191.7,4.82632399]
[1741485410918,0.5993,2192.3,2191.8,0.54758]
[1741485411221,0.54763,2191.7,2191.0,2.13050814]
[1741485411521,5.06215,2191.6,2191.0,0.6092]
[1741485411817,2.107,2191.8,2191.0,3.817]
[1741485412017,2.94645689,2191.8,2191.1,0.7192]
[1741485412313,1.38705689,2191.8,2191.1,0.54775]
[1741485412518,0.7074,2191.7,2191.1,0.54775]
[1741485412714,0.7074,2191.7,2191.0,2.26212896]
[1741485412915,1.25502,2191.7,2191.0,2.80989896]
[1741485414913,0.7074,2191.7,2191.3,3.2078]
[1741485415422,0.7074,2191.7,2191.4,1.3936]
[1741485416825,1.25502,2191.7,2191.4,0.6996]
[1741485417220,0.7074,2191.7,2191.4,0.6996]
[1741485417821,1.25502,2191.7,2191.4,0.6996]
[1741485418528,1.25502,2191.7,2191.0,4.97408896]
[1741485418722,0.54765,2191.6,2191.0,4.97408896]
[1741485419021,0.6711,2191.6,2191.0,4.97408896]
[1741485419216,3.8789,2191.6,2191.0,5.52186896]
[1741485419419,3.8789,2191.6,2191.0,4.97408896]
[1741485419613,3.8789,2191.6,2191.0,2.87508896]
[1741485419823,0.5477,2191.4,2191.0,2.87508896]
[1741485420021,3.8789,2191.6,2191.0,2.87508896]
[1741485420022,4.42655,2191.6,2191.0,2.87508896]
[1741485420219,3.8789,2191.6,2191.0,2.87508896]
[1741485420417,0.5477,2191.4,2191.0,2.87508896]
[1741485420616,3.8789,2191.6,2191.0,3.42285896]
[1741485421019,0.7074,2191.7,2191.0,2.87508896]
[1741485421227,0.7074,2191.7,2191.4,3.2078]
[1741485421429,0.7074,2191.7,2191.4,0.93372896]
[1741485421929,0.7074,2191.7,2191.2,0.54773]
[1741485422129,0.7074,2191.7,2191.1,3.2078]
[1741485422427,0.7074,2191.7,2191.3,0.54771]
[1741485422620,0.7074,2191.7,2191.2,0.54773]
[1741485422821,0.7074,2191.7,2191.1,3.2078]
[1741485423021,0.7074,2191.7,2191.2,0.54774]
[1741485423522,0.7074,2191.7,2191.1,3.2078]
[1741485423823,0.54765,2191.6,2191.1,3.2078]
[1741485424128,0.54767,2191.5,2191.1,3.2078]
[1741485424522,0.54776,2191.2,2190.8,20.499]
[1741485424835,3.9346,2191.1,2190.8,20.499]
[1741485425131,0.7268,2191.1,2190.8,20.499]
[1741485425624,0.7071,2191.3,2190.8,20.499]
[1741485425828,0.7071,2191.3,2190.9,0.54781]
[1741485426031,0.7071,2191.3,2191.0,0.6997]
[1741485426825,3.2078,2191.1,2190.9,0.00685291]
[1741485427422,3.2078,2191.1,2190.8,18.23178187]
[1741485428325,3.9404,2191.1,2190.6,0.7033]
[1741485428525,4.48817,2191.1,2190.6,0.7033]
[1741485428722,0.7275,2191.0,2190.6,0.7033]
[1741485430232,1.27529,2191.0,2190.6,0.7033]
[1741485430432,1.27529,2191.0,2190.5,1.88842896]
[1741485431033,0.7275,2191.0,2190.5,1.88842896]
[1741485433639,0.7275,2191.0,2190.5,0.82790335]
[1741485433933,1.2753,2191.0,2190.5,0.82790335]
[1741485434139,0.7275,2191.0,2190.5,0.82790335]
[1741485434637,1.27529,2191.0,2190.5,0.82790335]
[1741485434833,0.7275,2191.0,2190.5,0.82790335]
[1741485435433,3.75558,2191.1,2190.5,0.82790335]
[1741485435634,1.4397,2191.3,2191.0,3.2078]
[1741485436740,1.4397,2191.3,2191.0,0.93372896]
[1741485438543,2.1849,2191.3,2191.0,0.93372896]
[1741485438939,0.7452,2191.3,2191.0,0.93372896]
[1741485439743,0.54775,2191.2,2190.9,3.2078]
[1741485440041,1.35355,2191.2,2190.6,3.9362871]
[1741485440240,0.8058,2191.2,2190.6,3.9362871]
[1741485440434,0.8058,2191.2,2190.6,4.4841671]
[1741485440634,1.35355,2191.2,2190.6,3.9362871]
[1741485441034,1.35355,2191.2,2190.6,4.4841771]
[1741485441035,0.8058,2191.2,2190.6,4.4841771]
[1741485441236,1.35354,2191.2,2190.6,3.9362871]
[1741485441942,0.8058,2191.2,2190.6,4.4841671]
[1741485442245,3.95535291,2191.4,2190.9,3.2078]
[1741485442447,3.95535291,2191.4,2190.9,3.75559]
[1741485442642,0.74755291,2191.4,2190.9,1.48151896]
[1741485442837,0.74755291,2191.4,2190.9,0.93372896]
[1741485443240,0.74755291,2191.4,2190.9,1.78222896]
[1741485443241,3.95535291,2191.4,2190.9,1.78222896]
[1741485444247,0.54775,2191.2,2190.8,2.086]
[1741485444744,3.2078,2191.1,2190.8,2.086]
[1741485445439,4.0001,2191.1,2190.8,2.086]
[1741485445644,4.0001,2191.1,2190.6,0.54041189]
[1741485445845,0.8764,2191.0,2190.6,0.54041189]
[1741485446047,0.8764,2191.0,2190.6,1.08829189]
[1741485446345,0.8764,2191.0,2190.6,0.54041189]
[1741485446745,3.2078,2191.1,2190.6,1.08829189]
[1741485447449,3.2078,2191.1,2190.6,0.54041189]
[1741485448643,3.2078,2191.1,2190.5,0.89725085]
[1741485449445,3.2078,2191.1,2190.5,4.10505085]
[1741485450050,3.75557,2191.1,2190.5,4.10505085]
[1741485450949,3.2078,2191.1,2190.5,4.10505085]
[1741485451250,3.75557,2191.1,2190.5,3.55714085]
[1741485451642,3.2078,2191.1,2190.5,4.10505085]
[1741485451946,3.2078,2191.1,2190.5,2.62291]
[1741485452744,3.2078,2191.1,2190.5,2.075]
[1741485453045,3.75558,2191.1,2190.5,2.075]
[1741485453247,3.2078,2191.1,2190.5,2.075]
[1741485453446,0.5478,2191.0,2190.5,2.075]
[1741485453843,0.8059,2190.9,2190.5,2.075]
[1741485454151,0.8735,2190.8,2190.5,2.075]
[1741485454548,1.35045716,2191.1,2190.5,5.2828]
[1741485454748,2.0585,2191.8,2190.9,0.93372896]
[1741485454951,0.84430639,2191.4,2191.2,3.2078]
[1741485455254,2.0585,2191.8,2191.3,0.54771]
[1741485455453,2.62354,2192.1,2191.3,0.54771]
[1741485455654,0.54754,2192.0,2191.5,3.2078]
[1741485455857,0.00685291,2191.9,2191.5,3.21465291]
[1741485456642,0.55443291,2191.9,2191.5,3.21465291]
[1741485457855,1.7491,2191.8,2191.5,0.00685291]
[1741485458046,1.7491,2191.8,2191.5,3.21465291]
[1741485458248,0.57565188,2191.8,2191.5,3.21465291]
[1741485458643,0.00685291,2191.9,2191.5,3.21465291]
[1741485459049,0.00685291,2191.9,2191.6,0.8602]
[1741485460952,5.2758,2192.4,2191.8,3.75537]
[1741485461256,1.99621075,2192.4,2191.9,0.8545]
[1741485461557,0.54746,2192.3,2191.9,0.8545]
[1741485462149,0.55431291,2192.3,2191.9,0.86135291]
[1741485462658,0.55433291,2192.3,2191.9,0.86135291]
[1741485463356,0.00685291,2192.3,2191.9,0.86135291]
[1741485463656,3.2078,2192.8,2192.1,3.2078]
[1741485463854,4.0533,2192.8,2192.1,0.93372896]
[1741485464046,3.75523,2192.5,2192.1,0.93372896]
[1741485464358,3.75523,2192.5,2192.0,1.706]
[1741485464659,3.76208291,2192.5,2192.0,1.706]
[1741485464959,0.54744,2192.4,2192.0,1.706]
[1741485465151,3.76208291,2192.5,2192.0,1.706]
[1741485465857,3.21465291,2192.5,2192.0,1.706]
[1741485466247,3.76206291,2192.5,2192.0,1.706]
[1741485466953,3.21465291,2192.5,2192.0,0.10839234]
[1741485467154,3.21465291,2192.5,2191.9,1.40891291]
[1741485467660,3.21465291,2192.5,2191.9,0.86135291]
[1741485468651,3.76206291,2192.5,2191.9,0.86135291]
[1741485468851,3.21465291,2192.5,2191.9,2.0786486]
[1741485470061,3.21465291,2192.5,2191.9,1.17932756]
[1741485470861,3.76207291,2192.5,2191.9,1.29640887]
[1741485471061,3.76207291,2192.5,2191.9,1.84396887]
[1741485471360,3.21465291,2192.5,2192.0,0.00685291]
[1741485471561,3.21465291,2192.5,2192.0,0.55438291]
[1741485471859,3.76207291,2192.5,2192.0,0.00685291]
[1741485472048,3.21465291,2192.5,2192.0,0.00685291]
[1741485472361,2.52295291,2192.5,2192.1,3.75531]
[1741485472855,2.52295291,2192.5,2192.1,3.2078]
[1741485473063,2.52295291,2192.5,2192.1,0.93372896]
[1741485473261,2.52295291,2192.5,2192.1,1.87312896]
[1741485473461,0.21715291,2192.5,2192.1,1.87312896]
[1741485474263,0.00685291,2192.5,2192.1,1.87312896]
[1741485475360,0.00685291,2192.5,2192.1,2.42062896]
[1741485475560,0.00685291,2192.5,2192.1,3.41522896]
[1741485476164,0.00685291,2192.5,2192.1,0.9946]
[1741485476364,0.00685291,2192.5,2192.1,1.5421]
[1741485476561,0.00685291,2192.5,2192.2,0.54748]
[1741485476764,0.47205964,2192.6,2192.2,0.54748]
[1741485476965,0.47205964,2192.6,2192.2,0.9175]
[1741485477971,0.47891255,2192.6,2192.2,0.9175]
[1741485479055,0.47891255,2192.6,2192.0,3.21465291]
[1741485479257,0.47891255,2192.6,2192.1,0.54751]
[1741485479655,0.8046,2192.7,2192.0,3.21465291]
[1741485479856,4.0533,2192.8,2192.2,0.54748]
[1741485480056,4.0533,2192.8,2192.2,2.59248]
[1741485480853,0.00685291,2192.7,2192.3,3.2078]
[1741485482162,0.00685291,2192.7,2192.2,2.59248]
[1741485483066,0.98695291,2192.7,2192.2,2.59248]
[1741485483268,4.0533,2192.8,2192.2,2.59248]
[1741485483466,0.55746546,2192.8,2192.2,2.59248]
[1741485483761,0.55746546,2192.8,2192.3,3.2078]
[1741485483969,1e-08,2192.8,2192.4,0.9623]
[1741485484564,0.00685292,2192.8,2192.4,0.9623]
[1741485485165,0.00685292,2192.8,2192.3,1.89602896]
[1741485485464,0.92465292,2192.8,2192.3,1.89602896]
[1741485486267,0.92465292,2192.8,2192.3,2.44348896]
[1741485486471,3.2078,2192.8,2192.3,1.89602896]
[1741485486668,0.37777,2193.0,2192.5,0.54741]
[1741485487062,3.2078,2193.4,2192.6,4.1332]
[1741485487267,0.54722,2193.3,2192.9,3.2078]
[1741485487474,10.1488,2193.4,2192.9,3.2078]
[1741485487674,0.55407291,2193.3,2192.9,3.2078]
[1741485487880,0.00685291,2193.3,2192.9,3.2078]
[1741485488080,0.00685291,2193.3,2192.9,3.75509]
[1741485488272,21.77344391,2193.8,2193.2,3.2078]
[1741485488478,21.77344391,2193.8,2193.0,2.037]
[1741485488479,17.08946605,2193.8,2193.3,3.2078]
[1741485488680,17.63656605,2193.8,2193.3,3.2078]
[1741485488882,17.08946605,2193.8,2193.3,3.2078]
[1741485489084,17.63655605,2193.8,2193.3,3.2078]
[1741485489477,0.963,2193.7,2193.3,3.21465291]
[1741485489674,1.9072,2193.7,2193.3,3.21465291]
[1741485490286,2.45432,2193.7,2193.3,3.21465291]
[1741485490484,1.9072,2193.7,2193.3,3.21465291]
[1741485490678,0.54719,2193.4,2193.3,3.21465291]
[1741485491185,0.54719,2193.4,2193.3,0.94058187]
[1741485491579,0.54719,2193.4,2193.3,0.00685291]
[1741485491780,0.54719,2193.4,2193.0,3.2078]
[1741485491987,1.52263,2193.3,2193.0,1.81717042]
[1741485492187,0.9604,2193.2,2193.0,1.81717042]
[1741485492381,0.9604,2193.2,2192.7,9.78423149]
[1741485492581,1.50765,2193.2,2192.7,9.78423149]
[1741485493084,1.50765,2193.2,2192.7,9.7910844]
[1741485493390,0.9604,2193.2,2192.7,9.7910844]
[1741485493987,1.50764,2193.2,2192.7,9.7910844]
[1741485494188,1.50764,2193.2,2192.7,7.51701336]
[1741485494388,1.50764,2193.2,2192.7,5.25065291]
[1741485495489,0.9604,2193.2,2192.7,5.25065291]
[1741485495689,4.1832,2193.3,2192.7,5.25065291]
[1741485495884,9.65457,2193.5,2193.0,3.2078]
[1741485496085,9.65457,2193.5,2193.1,0.9399]
[1741485496684,0.54719,2193.4,2193.1,0.9399]
[1741485497393,0.54719,2193.4,2193.0,1.87362896]
[1741485497585,1.55439,2193.4,2193.0,1.87362896]
[1741485497987,0.54722,2193.3,2193.0,1.87362896]
[1741485498293,1.0072,2193.4,2193.0,1.87362896]
[1741485498493,1.55441,2193.4,2193.0,1.87362896]
[1741485499193,1.0072,2193.4,2193.0,1.87362896]
[1741485499394,1.55439,2193.4,2193.0,1.87362896]
[1741485499895,1.55441,2193.4,2193.0,1.87362896]
[1741485500087,1.0072,2193.4,2193.0,1.87362896]
[1741485500290,0.54725,2193.2,2192.8,3.2078]
[1741485500687,0.54725,2193.2,2192.9,0.9372]
[1741485501195,0.54723,2193.3,2192.9,0.9372]
[1741485501697,1.5544,2193.4,2192.9,0.94405291]
[1741485502291,1.0072,2193.4,2192.9,0.94405291]
[1741485502595,1.5544,2193.4,2192.9,0.94405291]
[1741485503090,1.0072,2193.4,2192.9,0.94405291]
[1741485503287,1.0072,2193.4,2192.9,1.01805291]
[1741485503493,1.0072,2193.4,2192.8,3.91468187]
[1741485503692,1.5544,2193.4,2192.8,3.91468187]
[1741485504397,1.0072,2193.4,2192.8,4.46201187]
[1741485504600,1.5544,2193.4,2192.9,0.00685291]
[1741485504890,1.0072,2193.4,2192.9,0.00685291]
[1741485505297,1.55439,2193.4,2192.9,0.00685291]
[1741485506499,4.75057,2193.5,2192.8,3.27408716]
[1741485506694,4.75057,2193.5,2192.9,1.0223]
[1741485507600,4.75057,2193.5,2193.0,0.00685291]
[1741485509401,4.75057,2193.5,2192.8,2.02927245]
[1741485509603,4.2034,2193.5,2193.0,1.036]
[1741485509802,5.2703,2193.5,2193.0,1.036]
[1741485510695,5.2703,2193.5,2193.0,1.04285291]
[1741485511603,2.03056862,2193.8,2193.1,3.2078]
[1741485511604,2.69470001,2193.7,2193.1,3.2078]
[1741485511903,2.84021137,2193.7,2193.1,5.2308]
[1741485512105,2.84021137,2193.7,2193.2,1.0464]
[1741485512504,2.84021137,2193.7,2193.1,4.00323238]
[1741485512707,1.11375291,2193.6,2193.1,4.00323238]
[1741485513105,2.1769829,2193.7,2193.1,4.00323238]
[1741485513407,3.2838829,2193.7,2193.1,4.00323238]
[1741485514401,0.00685291,2193.6,2193.1,4.00323238]
[1741485514809,0.99675291,2193.6,2193.1,4.00323238]
[1741485515604,0.99675291,2193.6,2193.1,2.75716476]
[1741485516609,0.99675291,2193.6,2193.1,0.73416476]
[1741485516816,3.755,2193.4,2193.1,0.73416476]
[1741485517019,0.987,2193.3,2193.1,0.73416476]
[1741485517211,0.9899,2193.2,2193.1,0.73416476]
[1741485517417,2.58224,2193.2,2193.1,0.73416476]
[1741485517916,2.035,2193.2,2193.0,0.00685291]
[1741485518417,2.58225,2193.2,2193.0,0.00685291]
[1741485518618,2.58225,2193.2,2192.8,1.94078529]
[1741485518817,2.035,2193.2,2192.8,1.94078529]
[1741485519612,2.58224,2193.2,2192.8,1.9476382]
[1741485520016,2.035,2193.2,2192.8,1.9476382]
[1741485520416,2.58224,2193.2,2192.8,1.9476382]
[1741485521223,3.2078,2193.1,2192.8,1.9476382]
[1741485521622,3.2078,2193.1,2192.7,1.69267058]
[1741485522218,3.2078,2192.8,2192.3,2.017]
[1741485522412,2.0925,2192.7,2192.3,3.0224]
[1741485522610,4.2991,2192.8,2192.3,3.0224]
[1741485522810,4.2991,2192.8,2192.3,3.02696862]
[1741485523318,3.2078,2192.9,2192.4,3.2078]
[1741485524711,3.2078,2192.9,2192.4,0.93383238]
[1741485525716,5.3048,2192.9,2192.4,0.93383238]
[1741485526309,6.3138,2192.9,2192.4,0.93383238]
[1741485526516,6.86112,2192.9,2192.4,0.93383238]
[1741485527119,6.3138,2192.9,2192.4,0.93383238]
[1741485527323,0.54734,2192.8,2192.4,0.93383238]
[1741485527622,0.54735,2192.8,2192.3,1.00996862]
[1741485527815,0.54735,2192.8,2192.3,3.02396862]
[1741485528018,0.347401,2192.8,2192.3,3.02396862]
[1741485528814,6.86113,2192.9,2192.3,3.02396862]
[1741485529009,0.54737,2192.7,2192.3,1.00996862]
[1741485530021,0.54737,2192.7,2192.3,0.00456862]
[1741485530726,3.2078,2192.6,2192.2,5.096401]
[1741485530912,1.069,2192.5,2192.2,5.096401]
[1741485531115,3.2078,2192.6,2192.2,5.096401]
[1741485531315,3.75516,2192.8,2192.2,6.334801]
[1741485532218,0.54737,2192.7,2192.2,6.334801]
[1741485533726,0.54737,2192.7,2192.2,4.06083338]
[1741485533917,3.2078,2192.5,2192.2,4.06083338]
[1741485534118,0.54737,2192.7,2192.2,4.06083338]
[1741485534326,2.4089,2192.6,2192.2,4.06083338]
[1741485534728,0.69214002,2192.6,2192.2,7.26863338]
[1741485535024,3.75515,2192.8,2192.2,7.26863338]
[1741485536233,3.2078,2192.8,2192.2,7.81611338]
[1741485536924,3.75514,2192.8,2192.2,4.99466576]
[1741485537125,4.90704,2192.8,2192.2,4.99466576]
[1741485537730,0.54738,2192.7,2192.2,4.99466576]
[1741485538026,0.54736,2192.7,2192.2,4.99466576]
[1741485538222,1.1798,2192.6,2192.2,4.99466576]
[1741485539927,4.90705,2192.8,2192.2,2.72069814]
[1741485540133,4.3597,2192.8,2192.3,1.2402]
[1741485540735,0.54737,2192.7,2192.3,1.2402]
[1741485541231,4.90705,2192.8,2192.3,1.2402]
[1741485542934,4.90705,2192.8,2192.3,0.10393238]
[1741485543135,1.193,2192.7,2192.3,0.10393238]
[1741485544334,1.193,2192.7,2192.2,2.72069814]
[1741485544539,0.54747,2192.3,2191.9,3.87243131]
[1741485544838,3.5766,2192.2,2191.9,3.2078]
[1741485545831,3.5766,2192.2,2191.6,2.56064]
[1741485546042,6.7844,2192.2,2191.7,2.3518]
[1741485546336,6.7844,2192.2,2191.7,3.17528633]
[1741485548929,6.7844,2192.2,2191.7,0.90131871]
[1741485550037,7.33189,2192.2,2191.7,0.90131871]
[1741485550239,3.2078,2191.9,2191.7,0.82348633]
[1741485550437,1.2072,2191.8,2191.5,6.18149149]
[1741485550639,2.0078666,2191.9,2191.5,6.18149149]
[1741485550834,2.97031,2192.2,2191.6,1.1458]
[1741485551032,3.2078,2192.1,2191.6,4.3536]
[1741485551431,3.11432218,2192.5,2192.0,3.2078]
[1741485551627,3.72313084,2192.5,2192.0,3.2078]
[1741485551833,3.72313084,2192.5,2192.1,2.2954]
[1741485552034,3.72313084,2192.5,2192.1,0.02143238]
[1741485552232,2.3,2192.4,2192.1,0.02143238]
[1741485552830,1.2411,2192.4,2192.1,0.02143238]
[1741485553035,2.013,2192.7,2192.3,3.2078]
[1741485553036,0.708962,2192.7,2192.3,3.2078]
[1741485553232,4.146662,2192.9,2192.4,1.1591]
[1741485553539,2.56031,2192.9,2192.4,1.1591]
[1741485553945,2.013,2192.9,2192.4,1.1591]
[1741485554138,2.56717291,2192.9,2192.4,1.1591]
[1741485554839,2.56717291,2192.9,2192.5,1.1912]
[1741485555039,2.56717291,2192.9,2192.4,0.07633238]
[1741485555240,2.2622,2192.8,2192.4,0.07633238]
[1741485555743,2.2622,2192.8,2192.7,3.2078]
[1741485558035,2.2622,2192.8,2192.7,0.93383238]
[1741485559037,2.01985291,2192.9,2192.7,0.93383238]
[1741485559233,0.00685291,2192.9,2192.7,0.93383238]
[1741485561140,0.00685291,2192.9,2192.5,3.2078]
[1741485562244,1.28755291,2192.9,2192.5,3.2078]
[1741485563648,3.2078,2193.2,2192.5,3.2078]
[1741485563951,3.2078,2193.2,2192.3,3.78073476]
[1741485563952,3.7957,2193.4,2193.0,3.2078]
[1741485564146,3.2485,2193.4,2193.0,0.93383238]
[1741485564541,1.24235291,2193.4,2193.0,0.93383238]
[1741485565141,1.24235291,2193.4,2193.0,2.24573238]
[1741485565142,0.00685291,2193.4,2193.0,2.24573238]
[1741485565352,1.7173,2193.6,2193.0,2.79300238]
[1741485565747,2.26444,2193.6,2193.0,2.24573238]
[1741485566552,0.00685291,2193.5,2193.0,2.79302238]
[1741485567152,0.00685291,2193.5,2193.0,3.72685476]
[1741485567347,0.00685291,2193.5,2193.0,3.2078]
[1741485567549,0.00685291,2193.5,2193.0,3.75507]
[1741485568651,0.00685291,2193.5,2192.9,0.5473]
[1741485568852,0.00685291,2193.5,2193.0,0.54728]
[1741485569055,0.00685291,2193.5,2192.8,1.58272814]
[1741485569249,3.2078,2193.3,2192.7,4.5097]
[1741485569449,0.54732,2192.9,2192.7,1.3019]
[1741485569651,1.82834,2192.8,2192.7,1.3019]
[1741485570250,1.82834,2192.8,2192.4,2.23573238]
[1741485570453,2.6365,2192.7,2192.4,2.23573238]
[1741485571956,1.2939,2192.7,2192.4,2.23573238]
[1741485572158,5.2198,2193.0,2192.4,2.23573238]
[1741485572353,5.2198,2193.0,2192.4,2.78315238]
[1741485573357,3.2078,2193.0,2192.4,0.50918476]
[1741485575260,3.2078,2193.0,2192.3,4.5527]
[1741485575455,3.2078,2193.0,2192.5,0.54741]
[1741485576348,3.00775783,2193.0,2192.6,0.54738]
[1741485576949,3.00775783,2193.0,2192.5,2.012]
[1741485577263,2.59215783,2193.0,2192.6,0.54737]
[1741485577652,3.9619,2193.2,2192.7,0.54736]
[1741485577852,3.9619,2193.2,2192.6,3.2078]
[1741485578060,3.9619,2193.2,2192.7,0.54736]
[1741485578363,3.9619,2193.2,2192.6,3.75518]
[1741485578858,3.9619,2193.2,2192.6,3.2078]
[1741485579058,3.9619,2193.2,2192.6,3.75519]
[1741485579253,3.9619,2193.2,2192.6,1.48122238]
[1741485579454,3.9619,2193.2,2192.7,1.2637]
[1741485580761,3.9619,2193.2,2192.7,2.5663]
[1741485582466,3.9619,2193.2,2192.7,0.29233238]
[1741485583864,3.9413,2193.2,2192.7,0.29233238]
[1741485585259,3.9413,2193.2,2192.5,2.012]
[1741485585464,3.2078,2193.0,2192.7,1.2551]
[1741485586864,3.2078,2193.0,2192.4,1.3099]
[1741485587065,3.2078,2193.0,2192.5,3.3015]
[1741485587360,3.2078,2193.0,2192.5,1.2895]